fUSD/lending_fUSD_20260415
["ID","MTS","AMOUNT","RATE_DAILY","PERIOD"]
[420525603,1776244251144,-500.0,0.00012736,2]
[420525604,1776244251155,-1000.0,0.00012907,2]
[420525605,1776244251165,-800.0,0.0001291,2]
[420525606,1776244251174,-2003.44890066,0.00012944,2]
[420525607,1776244251184,-151.0,0.00012951,3]
[420525608,1776244251194,-208.75417307,0.00012953,2]
[420525609,1776244251207,-250.0,0.00013,2]
[420525610,1776244251216,-2545.05639864,0.00013037,2]
[420525611,1776244251226,-6027.0,0.0001315,2]
[420525612,1776244251235,-1500.0,0.00013156,2]
[420525613,1776244251247,-163.71,0.00013193,2]
[420525614,1776244251256,-201.97219342,0.00013282,2]
[420525615,1776244251265,-162.380719,0.00013282,2]
[420525616,1776244251275,-244.4005,0.000133,2]
[420525617,1776244251285,-200.0,0.00013427,2]
[420525618,1776244251295,-179.48137933,0.00013446,2]
[420525619,1776244251304,-1000.0,0.00013451,2]
[420525620,1776244251314,-161.0,0.00013453,3]
[420525621,1776244251323,-256.73924886,0.00013498,2]
[420525622,1776244251333,-3075.0,0.000135,2]
[420525623,1776244251342,-507.0,0.000135,2]
[420525624,1776244251801,-151.0,0.00013516,3]
[420525625,1776244251812,-243.78304,0.00013526,2]
[420525626,1776244251822,-340.520088,0.00013526,2]
[420525627,1776244251834,-328.570426,0.00013526,2]
[420525628,1776244251847,-217.203716,0.00013526,2]
[420525629,1776244251857,-264.161037,0.00013526,2]
[420525630,1776244251869,-254.890997,0.00013526,2]
[420525631,1776244251884,-168.497428,0.00013526,2]
[420525632,1776244251893,-256.385346,0.00013526,2]
[420525633,1776244251903,-200.0,0.00013562,2]
[420525634,1776244251915,-5000.0,0.00013598,2]
[420525635,1776244251930,-500.0,0.00013616,2]
[420525636,1776244251940,-239.75919,0.00013671,2]
[420525637,1776244251950,-151.0,0.00013671,2]
[420525638,1776244251962,-4141.72262203,0.00013671,2]
[420525639,1776244251978,-500.0,0.00013698,2]
[420525640,1776244251988,-500.0,0.00013698,2]
[420525641,1776244251997,-500.0,0.00013698,2]
[420525642,1776244252017,-500.0,0.00013698,2]
[420525643,1776244252027,-500.0,0.00013698,2]
[420525644,1776244252037,-500.0,0.00013699,2]
[420525645,1776244252051,-500.0,0.00013699,2]
[420525646,1776244252062,-862.06,0.00013699,2]
[420525647,1776244252073,-166.66,0.00013699,2]
[420525648,1776244252086,-200.0,0.00013699,2]
[420525649,1776244252103,-226.02,0.00013699,2]
[420525650,1776244252117,-1439.0,0.00013699,2]
[420525651,1776244252127,-168.16,0.00013699,2]
[420525652,1776244252137,-543.07654382,0.00013699,2]
[420525653,1776244252154,-543.07654382,0.00013699,2]
[420525654,1776244252164,-543.07654382,0.00013699,2]
[420525655,1776244252174,-543.07654382,0.00013699,2]
[420525656,1776244252185,-543.07654382,0.00013699,2]
[420525657,1776244252203,-543.07654382,0.00013699,2]
[420525658,1776244252215,-543.07654382,0.00013699,2]
[420525659,1776244252225,-543.07654382,0.00013699,2]
[420525660,1776244252249,-543.07654382,0.00013699,2]
[420525661,1776244252261,-543.07654382,0.00013699,2]
[420525662,1776244252277,-543.07654382,0.00013699,2]
[420525663,1776244252294,-543.07654382,0.00013699,2]
[420525664,1776244252305,-543.07654382,0.00013699,2]
[420525665,1776244252324,-543.07654382,0.00013699,2]
[420525666,1776244252339,-543.07654382,0.00013699,2]
[420525667,1776244252351,-543.07654382,0.00013699,2]
[420525668,1776244252365,-543.07654382,0.00013699,2]
[420525669,1776244252378,-543.07654382,0.00013699,2]
[420525670,1776244252390,-543.07654382,0.00013699,2]
[420525671,1776244252405,-543.07654382,0.00013699,2]
[420525672,1776244252415,-543.07654382,0.00013699,2]
[420525673,1776244252428,-543.07654382,0.00013699,2]
[420525674,1776244252444,-543.07654382,0.00013699,2]
[420525675,1776244252463,-543.07654382,0.00013699,2]
[420525676,1776244252480,-543.07654382,0.00013699,2]
[420525677,1776244252494,-543.07654382,0.00013699,2]
[420525678,1776244252506,-543.07654382,0.00013699,2]
[420525679,1776244252527,-543.07654382,0.00013699,2]
[420525680,1776244252542,-543.07654382,0.00013699,2]
[420525681,1776244252559,-543.07654382,0.00013699,2]
[420525682,1776244252579,-543.07654382,0.00013699,2]
[420525683,1776244252591,-543.07654382,0.00013699,2]
[420525684,1776244252617,-543.07654382,0.00013699,2]
[420525685,1776244252651,-543.07654382,0.00013699,2]
[420525686,1776244252685,-543.07654382,0.00013699,2]
[420525687,1776244252725,-543.07654382,0.00013699,2]
[420525688,1776244252793,-543.07654382,0.00013699,2]
[420525689,1776244252857,-543.07654382,0.00013699,2]
[420525690,1776244252898,-543.07654382,0.00013699,2]
[420525691,1776244252946,-543.07654382,0.00013699,2]
[420525692,1776244253004,-543.07654382,0.00013699,2]
[420525693,1776244253049,-539.68231542,0.00013699,2]
[420525694,1776244253075,-539.68231542,0.00013699,2]
[420525695,1776244253094,-539.68231542,0.00013699,2]
[420525696,1776244253111,-539.68231542,0.00013699,2]
[420525697,1776244253126,-539.68231542,0.00013699,2]
[420525698,1776244253147,-539.68231542,0.00013699,2]
[420525699,1776244253161,-539.68231542,0.00013699,2]
[420525700,1776244253176,-539.68231542,0.00013699,2]
[420525701,1776244253198,-539.68231542,0.00013699,2]
[420525702,1776244253211,-539.68231542,0.00013699,2]
[420525703,1776244253227,-539.68231542,0.00013699,2]
[420525704,1776244253242,-539.68231542,0.00013699,2]
[420525705,1776244253253,-539.68231542,0.00013699,2]
[420525706,1776244253266,-539.68231542,0.00013699,2]
[420525707,1776244253285,-539.68231542,0.00013699,2]
[420525708,1776244253296,-539.68231542,0.00013699,2]
[420525709,1776244253306,-539.68231542,0.00013699,2]
[420525710,1776244253318,-539.68231542,0.00013699,2]
[420525711,1776244253338,-539.68231542,0.00013699,2]
[420525712,1776244253350,-539.68231542,0.00013699,2]
[420525713,1776244253368,-539.68231542,0.00013699,2]
[420525714,1776244253383,-539.68231542,0.00013699,2]
[420525715,1776244253393,-539.68231542,0.00013699,2]
[420525716,1776244253411,-539.68231542,0.00013699,2]
[420525717,1776244253423,-539.68231542,0.00013699,2]
[420525718,1776244253434,-539.68231542,0.00013699,2]
[420525719,1776244253462,-539.68231542,0.00013699,2]
[420525720,1776244253477,-539.68231542,0.00013699,2]
[420525721,1776244253489,-539.68231542,0.00013699,2]
[420525722,1776244253503,-539.68231542,0.00013699,2]
[420525723,1776244253520,-539.68231542,0.00013699,2]
[420525724,1776244253531,-539.68231542,0.00013699,2]
[420525725,1776244253543,-539.68231542,0.00013699,2]
[420525726,1776244253572,-539.68231542,0.00013699,2]
[420525727,1776244253583,-539.68231542,0.00013699,2]
[420525728,1776244253607,-539.68231542,0.00013699,2]
[420525729,1776244253621,-539.68231542,0.00013699,2]
[420525730,1776244253630,-539.68231542,0.00013699,2]
[420525731,1776244253667,-1573.0,0.000137,2]
[420525732,1776244253682,-162.0,0.000137,2]
[420525733,1776244253725,-2000.0,0.000137,2]
[420525734,1776244253759,-455.78,0.000137,2]
[420525735,1776244253773,-455.78,0.000137,2]
[420525736,1776244253807,-937.0,0.00013721,2]
[420525737,1776244253825,-364.0,0.00013755,5]
[420525738,1776244253856,-1174.0,0.00013755,5]
[420525739,1776244253869,-160.0,0.00013774,2]
[420525740,1776244253899,-168.0,0.00013788,2]
[420525741,1776244253910,-150.0,0.00013802,2]
[420525742,1776244253943,-150.214,0.00013802,2]
[420525743,1776244253954,-150.0,0.00013802,2]
[420525744,1776244253995,-1049.542,0.00013802,2]
[420525745,1776244254020,-3527.0,0.00013802,2]
[420525746,1776244254074,-1348.0,0.00013802,2]
[420525747,1776244254108,-1265.0,0.00013802,2]
[420525748,1776244254141,-926.0,0.00013802,2]
[420525749,1776244254166,-1218.0,0.00013802,2]
[420525750,1776244254184,-416.0,0.00013802,2]
[420525751,1776244254203,-2473.0,0.00013802,2]
[420525752,1776244254222,-168.0,0.00013824,2]
[420525753,1776244254241,-174.77,0.00013824,2]
[420525754,1776244254259,-168.3888056,0.0001383,2]
[420525755,1776244254286,-167.14,0.00013834,2]
[420525756,1776244254306,-166.66,0.00013836,2]
[420525757,1776244254338,-239.75919,0.00013871,2]
[420525758,1776244254363,-1000.0,0.00013925,2]
[420525759,1776244254386,-168.0,0.00013959,2]
[420525760,1776244254409,-166.66,0.00013973,2]
[420525761,1776244254430,-168.0,0.00013975,2]
[420525762,1776244254463,-212.126925,0.00014,2]
[420525763,1776244254494,-6284.6782845,0.00014008,2]
[420525764,1776244254538,-5591.8626624,0.00014008,2]
[420525765,1776244254560,-163.0,0.0001402,2]
[420525766,1776244254583,-1574.0,0.0001402,2]
[420525767,1776244254617,-162.0,0.0001402,2]
[420525768,1776244254642,-168.0,0.00014031,2]
[420525769,1776244254676,-517.63,0.00014032,2]
[420525770,1776244254697,-168.0,0.00014032,2]
[420525771,1776244254730,-168.0,0.0001404,2]
[420525772,1776244254752,-239.75919,0.00014071,2]
[420525773,1776244254774,-151.0,0.00014082,3]
[420525774,1776244254798,-150.0,0.00014098,2]
[420525775,1776244254827,-166.66,0.0001411,2]
[420525776,1776244254847,-596.76,0.0001411,2]
[420525777,1776244254879,-500.0,0.0001411,2]
[420525778,1776244254895,-500.0,0.0001411,2]
[420525779,1776244254923,-500.0,0.0001411,2]
[420525780,1776244254933,-500.0,0.0001411,2]
[420525781,1776244254969,-500.0,0.0001411,2]
[420525782,1776244254985,-500.0,0.0001411,2]
[420525783,1776244255011,-500.0,0.0001411,2]
[420525784,1776244255029,-500.0,0.0001411,2]
[420525785,1776244255055,-500.0,0.0001411,2]
[420525786,1776244255075,-168.0,0.00014138,2]
[420525787,1776244255109,-152.0,0.0001415,3]
[420525788,1776244255139,-168.0,0.00014151,2]
[420525789,1776244255162,-151.0,0.00014154,2]
[420525790,1776244255183,-273.190498,0.00014202,2]
[420525791,1776244255198,-275.306618,0.00014202,7]
[420525792,1776244255222,-166.66,0.00014247,2]
[420525793,1776244255243,-1439.0,0.00014247,2]
[420525794,1776244255265,-1600.0,0.0001426,2]
[420525795,1776244255281,-239.75919,0.00014271,2]
[420525796,1776244255297,-168.0,0.00014321,2]
[420525797,1776244255308,-256.73924884,0.00014349,2]
[420525798,1776244255320,-1402.3012721,0.00014363,2]
[420525799,1776244255330,-1247.7132114,0.00014363,2]
[420525800,1776244255345,-152.0,0.00014369,4]
[420525801,1776244255354,-174.61919141,0.00014378,2]
[420525802,1776244255368,-862.06,0.00014384,2]
[420525803,1776244255380,-166.66,0.00014384,2]
[420525804,1776244255391,-164.26,0.00014385,2]
[420525805,1776244255401,-179.48137933,0.00014395,2]
[420525806,1776244255412,-800.0,0.00014402,2]
[420525807,1776244255422,-168.0,0.00014455,2]
[420525808,1776244255431,-162.55,0.00014455,2]
[420525809,1776244255441,-239.75919,0.00014471,2]
[420525810,1776244255450,-150.0,0.00014496,2]
[420525811,1776244255460,-152.0,0.0001452,2]
[420525812,1776244255471,-419.81319855,0.00014521,2]
[420525813,1776244255481,-161.0,0.00014522,3]
[420525814,1776244255491,-168.0,0.00014562,2]
[420525815,1776244255501,-800.0,0.00014582,2]
[420525816,1776244255512,-1700.0,0.00014582,2]
[420525817,1776244255521,-152.0,0.00014588,5]
[420525818,1776244255530,-168.0,0.00014595,2]
[420525819,1776244255541,-311.9663,0.000146,2]
[420525820,1776244255550,-168.0,0.00014624,2]
[420525821,1776244255560,-168.0,0.00014632,2]
[420525822,1776244255570,-151.0,0.00014647,3]
[420525823,1776244255579,-300.0,0.00014654,2]
[420525824,1776244255591,-300.0,0.00014654,2]
[420525825,1776244255601,-300.0,0.00014654,2]
[420525826,1776244255611,-666.0,0.00014654,2]
[420525827,1776244255620,-6504.98,0.00014655,2]
[420525828,1776244255632,-20309.38,0.00014655,2]
[420525829,1776244255642,-239.75919,0.00014671,2]
[420525830,1776244255651,-2000.0,0.00014676,2]
[420525831,1776244255661,-168.0,0.00014687,2]
[420525832,1776244255670,-168.0,0.00014701,2]
[420525833,1776244255680,-168.0,0.00014703,2]
[420525834,1776244255690,-150.0,0.00014717,2]
[420525835,1776244255699,-1000.0,0.00014731,2]
[420525836,1776244255708,-151.0,0.00014744,2]
[420525837,1776244255717,-151.0,0.00014744,2]
[420525838,1776244255727,-151.0,0.00014744,2]
[420525839,1776244255736,-150.0,0.00014774,4]
[420525840,1776244255756,-150.0,0.00014774,4]
[420525841,1776244255766,-202.15177586,0.00014774,4]
[420525842,1776244255777,-150.0,0.00014774,4]
[420525843,1776244255787,-150.0,0.00014774,4]
[420525844,1776244255797,-150.0,0.00014774,4]
[420525845,1776244255807,-151.64471322,0.00014774,4]
[420525846,1776244255817,-150.0,0.00014774,4]
[420525847,1776244255827,-500.0,0.00014774,4]
[420525848,1776244255836,-150.0,0.00014774,4]
[420525849,1776244255846,-500.0,0.00014774,4]
[420525850,1776244255856,-250.0,0.00014774,4]
[420525851,1776244255865,-500.0,0.00014774,4]
[420525852,1776244255875,-500.0,0.00014774,4]
[420525853,1776244255884,-150.0,0.00014774,4]
[420525854,1776244255894,-220.26329783,0.00014774,4]
[420525855,1776244255904,-168.59241014,0.00014774,4]
[420525856,1776244255914,-150.0,0.00014774,4]
[420525857,1776244255924,-150.0,0.00014774,4]
[420525858,1776244255933,-150.0,0.00014774,4]
[420525859,1776244255943,-287.57091441,0.00014774,4]
[420525860,1776244255954,-151.02179424,0.00014774,4]
[420525861,1776244255964,-500.0,0.00014774,4]
[420525862,1776244255974,-580.60632942,0.00014774,4]
[420525863,1776244255984,-156.99098125,0.00014774,4]
[420525864,1776244255993,-150.0,0.00014774,4]
[420525865,1776244256003,-150.0,0.00014774,4]
[420525866,1776244256012,-421.0,0.00014774,4]
[420525867,1776244256022,-150.0,0.00014774,4]
[420525868,1776244256032,-421.0,0.00014774,4]
[420525869,1776244256042,-247.87591795,0.00014774,4]
[420525870,1776244256051,-421.0,0.00014774,4]
[420525871,1776244256061,-421.0,0.00014774,4]
[420525872,1776244256071,-421.0,0.00014774,4]
[420525873,1776244256081,-421.0,0.00014774,4]
[420525874,1776244256091,-421.0,0.00014774,4]
[420525875,1776244256101,-421.0,0.00014774,4]
[420525876,1776244256110,-421.0,0.00014774,4]
[420525877,1776244256120,-421.0,0.00014774,4]
[420525878,1776244256130,-155.28651857,0.00014774,4]
[420525879,1776244256139,-421.0,0.00014774,4]
[420525880,1776244256154,-421.0,0.00014774,4]
[420525881,1776244256163,-164.11863008,0.00014774,4]
[420525882,1776244256172,-421.0,0.00014774,4]
[420525883,1776244256182,-421.0,0.00014774,4]
[420525884,1776244256192,-157.14731396,0.00014774,4]
[420525885,1776244256205,-421.0,0.00014774,4]
[420525886,1776244256216,-421.0,0.00014774,4]
[420525887,1776244256226,-421.0,0.00014774,4]
[420525888,1776244256237,-421.0,0.00014774,4]
[420525889,1776244256254,-421.0,0.00014774,4]
[420525890,1776244256264,-421.0,0.00014774,4]
[420525891,1776244256277,-421.0,0.00014774,4]
[420525892,1776244256295,-421.0,0.00014774,4]
[420525893,1776244256309,-421.0,0.00014774,4]
[420525894,1776244256320,-435.60955993,0.00014774,4]
[420525895,1776244256339,-500.0,0.00014774,4]
[420525896,1776244256351,-500.0,0.00014774,4]
[420525897,1776244256362,-500.0,0.00014774,4]
[420525898,1776244256382,-500.0,0.00014774,4]
[420525899,1776244256398,-479.0820081,0.00014774,4]
[420525900,1776244256409,-500.0,0.00014774,4]
[420525901,1776244256429,-500.0,0.00014774,4]
[420525902,1776244256439,-500.0,0.00014774,4]
[420525903,1776244256454,-500.0,0.00014774,4]
[420525904,1776244256475,-215.58894533,0.00014774,4]
[420525905,1776244256488,-500.0,0.00014774,4]
[420525906,1776244256503,-505.72457062,0.00014774,4]
[420525907,1776244256522,-500.0,0.00014774,2]
[420525908,1776244256537,-500.0,0.00014774,2]
[420525909,1776244256561,-500.0,0.00014774,2]
[420525910,1776244256574,-500.0,0.00014774,2]
[420525911,1776244256591,-500.0,0.00014774,2]
[420525912,1776244256607,-500.0,0.00014774,2]
[420525913,1776244256625,-500.0,0.00014774,2]
[420525914,1776244256636,-320.22698653,0.00014774,2]
[420525915,1776244256651,-151.000001,0.00014774,2]
[420525916,1776244256669,-195.73474906,0.00014774,4]
[420525917,1776244256684,-151.0,0.00014774,2]
[420525918,1776244256708,-151.0,0.00014774,2]
[420525919,1776244256723,-151.0,0.00014774,2]
[420525920,1776244256750,-1439.0,0.00014795,2]
[420525921,1776244256763,-300.0,0.00014795,2]
[420525922,1776244256779,-300.0,0.00014795,2]
[420525923,1776244256801,-233.05,0.00014795,2]
[420525924,1776244256815,-168.0,0.00014805,2]
[420525925,1776244256836,-152.0,0.00014807,6]
[420525926,1776244256849,-168.0,0.00014875,2]
[420525927,1776244256863,-1000.0,0.00014894,2]
[420525928,1776244256877,-150.0,0.000149,2]
[420525929,1776244256893,-764.29482285,0.000149,2]
[420525930,1776244256907,-525.568331,0.00014915,2]
[420525931,1776244256920,-150.0,0.00014918,2]
[420525932,1776244256934,-599.60298507,0.00014925,2]
[420525933,1776244256944,-270.60728492,0.00014926,2]
[420525934,1776244256958,-150.0,0.00014931,2]
[420525935,1776244256975,-164.26,0.00014946,2]
[420525936,1776244256986,-1759.13064788,0.00014994,2]
[420525937,1776244256998,-500.0,0.00014999,2]
[420525938,1776244257019,-300.0,0.00014999,2]
[420525939,1776244257030,-666.0,0.00014999,2]
[420525940,1776244257042,-500.0,0.00015,3]
[420525941,1776244257063,-500.0,0.00015,3]
[420525942,1776244257074,-50000.0,0.00015,2]
[420525943,1776244257092,-164.7971,0.00015,2]
[420525944,1776244257112,-500.0,0.00015,2]
[420525945,1776244257132,-1253.0,0.00015,2]
[420525946,1776244257151,-1050.0,0.00015,2]
[420525947,1776244257172,-300.0,0.00015,2]
[420525948,1776244257203,-151.0,0.00015,2]
[420525949,1776244257219,-186.126984,0.00015,2]
[420525950,1776244257262,-1054.0,0.00015,2]
[420525951,1776244257315,-2000.0,0.00015,2]
[420525952,1776244257372,-507.0,0.00015011,3]
[420525953,1776244257652,-152.0,0.00015025,7]
[420525954,1776244257702,-871.1929047,0.0001505,2]
[420525955,1776244257734,-246.0,0.00015068,2]
[420525956,1776244257757,-246.19566,0.00015068,2]
[420525957,1776244257779,-406.91,0.00015068,2]
[420525958,1776244257800,-862.06,0.00015068,2]
[420525959,1776244257819,-447.651169,0.00015068,2]
[420525960,1776244257835,-447.651169,0.00015068,2]
[420525961,1776244257856,-447.651169,0.00015068,2]
[420525962,1776244257866,-447.651169,0.00015068,2]
[420525963,1776244257878,-775.88696598,0.0001507,2]
[420525964,1776244257895,-1000.0,0.00015095,2]
[420525965,1776244257910,-649.99564863,0.000151,2]
[420525966,1776244257922,-2000.0,0.000151,2]
[420525967,1776244257936,-291.60268649,0.00015143,7]
[420525968,1776244257950,-168.0,0.00015144,2]
[420525969,1776244257962,-831.50484384,0.0001518,2]
[420525970,1776244257974,-1500.0,0.00015189,2]
[420525971,1776244257988,-1500.0,0.00015189,2]
[420525972,1776244257998,-1500.0,0.00015189,2]
[420525973,1776244258008,-1500.0,0.00015189,2]
[420525974,1776244258018,-1500.0,0.00015189,2]
[420525975,1776244258032,-283.37864848,0.00015199,2]
[420525976,1776244258042,-256.73924884,0.00015199,2]
[420525977,1776244258053,-1000.0,0.000152,4]
[420525978,1776244258063,-500.0,0.000152,2]
[420525979,1776244258077,-219.08242902,0.000152,2]
[420525980,1776244258087,-329.12121212,0.000152,2]
[420525981,1776244258097,-2000.0,0.000152,2]
[420525982,1776244258107,-1791.17082651,0.000152,2]
[420525983,1776244258118,-150.0,0.00015204,2]
[420525984,1776244258127,-150.0,0.00015209,2]
[420525985,1776244258138,-151.0,0.00015213,3]
[420525986,1776244258148,-151.0,0.0001523,2]
[420525987,1776244258158,-5421.79563966,0.0001524,2]
[420525988,1776244258171,-152.0,0.00015244,8]
[420525989,1776244258181,-152.0,0.00015254,5]
[420525990,1776244258191,-378.17347688,0.00015254,2]
[420525991,1776244258201,-596.76,0.00015256,2]
[420525992,1776244258212,-500.0,0.00015256,2]
[420525993,1776244258222,-500.0,0.00015256,2]
[420525994,1776244258232,-150.0,0.00015256,2]
[420525995,1776244258242,-500.0,0.00015256,2]
[420525996,1776244258253,-500.0,0.00015256,2]
[420525997,1776244258263,-500.0,0.00015256,2]
[420525998,1776244258272,-500.0,0.00015256,2]
[420525999,1776244258282,-500.0,0.00015256,2]
[420526000,1776244258292,-500.0,0.00015256,2]
[420526001,1776244258304,-500.0,0.00015256,2]
[420526002,1776244258315,-5800.0,0.00015257,2]
[420526003,1776244258325,-501.0,0.0001526,2]
[420526004,1776244258335,-902.39225176,0.00015263,2]
[420526005,1776244258345,-305.10299039,0.00015263,2]
[420526006,1776244258356,-666.0,0.00015263,2]
[420526007,1776244258365,-25000.0,0.00015264,3]
[420526008,1776244258375,-5800.0,0.00015265,2]
[420526009,1776244258385,-25000.0,0.00015273,3]
[420526010,1776244258395,-500.45951321,0.00015273,2]
[420526011,1776244258404,-500.77815463,0.00015273,2]
[420526012,1776244258415,-500.0,0.00015273,2]
[420526013,1776244258425,-500.0,0.00015273,2]
[420526014,1776244258436,-500.0,0.00015273,2]
[420526015,1776244258446,-501.16478036,0.00015273,2]
[420526016,1776244258458,-500.36799737,0.00015273,2]
[420526017,1776244258469,-387.01996279,0.00015273,2]
[420526018,1776244258481,-500.0,0.00015273,2]
[420526019,1776244258491,-269.22789094,0.00015273,2]
[420526020,1776244258505,-500.0,0.00015273,2]
[420526021,1776244258517,-500.82826281,0.00015273,2]
[420526022,1776244258531,-500.0,0.00015273,2]
[420526023,1776244258542,-500.0,0.00015273,2]
[420526024,1776244258553,-500.0,0.00015273,2]
[420526025,1776244258566,-500.0,0.00015273,2]
[420526026,1776244258583,-391.74002262,0.00015273,2]
[420526027,1776244258631,-500.0,0.00015273,2]
[420526028,1776244258683,-500.0,0.00015273,2]
[420526029,1776244258763,-500.0,0.00015273,2]
[420526030,1776244258925,-500.41376982,0.00015273,2]
[420526031,1776244259098,-500.42364125,0.00015273,2]
[420526032,1776244259234,-500.0,0.00015273,2]
[420526033,1776244259278,-500.88012616,0.00015273,2]
[420526034,1776244259308,-213.73408632,0.00015273,2]
[420526035,1776244259353,-291.60268649,0.00015273,2]
[420526036,1776244259391,-5800.0,0.00015274,2]
[420526037,1776244259414,-151.0,0.00015281,2]
[420526038,1776244259435,-151.0,0.00015281,2]
[420526039,1776244259464,-151.0,0.00015281,2]
[420526040,1776244259485,-25000.0,0.00015281,3]
[420526041,1776244260183,-151.0,0.00015282,2]
[420526042,1776244260225,-151.0,0.00015282,2]
[420526043,1776244260236,-151.0,0.00015282,2]
[420526044,1776244260251,-5800.0,0.00015282,2]
[420526045,1776244260262,-168.0,0.00015286,2]
[420526046,1776244260272,-25000.0,0.0001529,3]
[420526047,1776244260282,-5800.0,0.00015291,2]
[420526048,1776244260293,-5800.0,0.00015291,2]
[420526049,1776244260305,-151.0,0.00015296,2]
[420526050,1776244260315,-168.0,0.00015297,2]
[420526051,1776244260327,-151.0,0.00015297,2]
[420526052,1776244260338,-596.76,0.00015298,2]
[420526053,1776244260350,-500.0,0.00015298,2]
[420526054,1776244260363,-500.0,0.00015298,2]
[420526055,1776244260373,-500.0,0.00015298,2]
[420526056,1776244260384,-500.0,0.00015298,2]
[420526057,1776244260394,-500.0,0.00015298,2]
[420526058,1776244260410,-500.0,0.00015298,2]
[420526059,1776244260421,-500.0,0.00015298,2]
[420526060,1776244260432,-500.0,0.00015298,2]
[420526061,1776244260443,-500.0,0.00015298,2]
[420526062,1776244260453,-500.0,0.00015298,2]
[420526063,1776244260463,-666.0,0.00015298,2]
[420526064,1776244260474,-500.0,0.00015298,2]
[420526065,1776244260485,-1115.02658429,0.00015299,5]
[420526066,1776244260495,-84045.1170596,0.00015299,4]
[420526067,1776244262578,-682.71705098,0.00015299,4]
[420526068,1776244262604,-6542.21968258,0.00015299,4]
[420526081,1776244783401,1200.0,0.000165,30]
[420526092,1776245368170,10000.0,0.000165,30]
[420526093,1776245380228,10000.0,0.000165,30]
[420526094,1776245388845,10000.0,0.000165,30]
[420526095,1776245398341,10000.0,0.000165,30]
[420526098,1776245410649,10000.0,0.000165,30]
[420526099,1776245418883,10000.0,0.000165,30]
[420526100,1776245428804,10000.0,0.000165,30]
[420526167,1776245435031,-153.46564694,0.00010504,2]
[420526168,1776245435044,-150.0,0.00010504,2]
[420526169,1776245435057,-150.0,0.00010504,2]
[420526170,1776245435070,-150.0,0.00010504,2]
[420526171,1776245435086,-150.0,0.00010504,2]
[420526172,1776245435097,-150.0,0.00010504,2]
[420526173,1776245435110,-200.0,0.00010761,2]
[420526174,1776245435128,-243.35,0.0001096,2]
[420526175,1776245435138,-206.51,0.0001096,2]
[420526176,1776245435153,-1200.0,0.00010999,2]
[420526177,1776245435170,-180.0,0.00010999,2]
[420526178,1776245435187,-300.0,0.00010999,2]
[420526179,1776245435198,-1963.32987492,0.00011,2]
[420526180,1776245435218,-194.13615263,0.00011,2]
[420526181,1776245435231,-12149.3,0.0001104,2]
[420526182,1776245435241,-2196.71766548,0.000114,2]
[420526183,1776245435262,-150.0,0.00011507,2]
[420526184,1776245435277,-9008.98,0.00011508,2]
[420526185,1776245435290,-600.0,0.00011555,2]
[420526186,1776245435312,-1456.4032,0.00011567,2]
[420526187,1776245435323,-675.4368,0.00011577,2]
[420526188,1776245435335,-5465.5849,0.00011577,2]
[420526189,1776245435357,-2500.0,0.00011578,2]
[420526190,1776245435367,-2831.053,0.00011599,2]
[420526191,1776245435382,-173.889,0.00011599,2]
[420526192,1776245435400,-7919.8130889,0.000116,2]